[Event "Titled Tuesday Blitz August 23 Early 2022"]
[White "Lenderman, Aleksandr"]
[Black "Andreikin, Dmitry"]
[WhiteFideId "2021285"]
[BlackFideId "4158814"]
[WhiteElo "2607"]
[BlackElo "2736"]
[Result "0-1"]
[Round "06"]
[TimeControl "180+1"]
[Date "2022.08.23"]
[WhiteClock "0:00:05"]
[BlackClock "0:01:04"]

1. d4 {[%clk 0:03:00]}  d5 {[%clk 0:03:00]} 2. c4 {[%clk 0:03:00]}  e6 {[%clk 0:03:00]} 3. Nf3 {[%clk 0:02:56]}  Nf6 {[%clk 0:03:00]} 4. e3 {[%clk 0:02:57]}  a6 {[%clk 0:02:57]} 5. b3 {[%clk 0:02:56]}  c5 {[%clk 0:02:56]} 6. cxd5 {[%clk 0:02:55]}  exd5 {[%clk 0:02:49]} 7. Bb2 {[%clk 0:02:54]}  cxd4 {[%clk 0:02:47]} 8. Nxd4 {[%clk 0:02:54]}  Bb4+ {[%clk 0:02:48]} 9. Bc3 {[%clk 0:02:53]}  Bd6 {[%clk 0:02:48]} 10. Nd2 {[%clk 0:02:53]}  O-O {[%clk 0:02:47]} 11. Be2 {[%clk 0:02:51]}  Re8 {[%clk 0:02:47]} 12. Bb2 {[%clk 0:02:42]}  Nc6 {[%clk 0:02:42]} 13. O-O {[%clk 0:02:40]}  Bc7 {[%clk 0:02:41]} 14. Rc1 {[%clk 0:02:33]}  Qd6 {[%clk 0:02:40]} 15. N2f3 {[%clk 0:02:28]}  Ne4 {[%clk 0:02:30]} 16. Nxc6 {[%clk 0:02:21]}  bxc6 {[%clk 0:02:30]} 17. Qd4 {[%clk 0:02:18]}  Qg6 {[%clk 0:02:22]} 18. Rxc6 {[%clk 0:02:12]}  Bd6 {[%clk 0:02:22]} 19. Rfc1 {[%clk 0:01:27]}  h5 {[%clk 0:02:16]} 20. Qxd5 {[%clk 0:01:15]}  Bb7 {[%clk 0:02:14]} 21. Nh4 {[%clk 0:00:58]}  Bxc6 {[%clk 0:02:11]} 22. Rxc6 {[%clk 0:00:59]}  Qe6 {[%clk 0:02:10]} 23. Qxe6 {[%clk 0:00:47]}  Rxe6 {[%clk 0:02:11]} 24. g3 {[%clk 0:00:47]}  Bxg3 {[%clk 0:02:07]} 25. Rxe6 {[%clk 0:00:31]}  Bxf2+ {[%clk 0:02:08]} 26. Kg2 {[%clk 0:00:31]}  fxe6 {[%clk 0:02:08]} 27. Ng6 {[%clk 0:00:31]}  Rd8 {[%clk 0:01:58]} 28. Bd4 {[%clk 0:00:25]}  Be1 {[%clk 0:01:48]} 29. Bc4 {[%clk 0:00:21]}  Bc3 {[%clk 0:01:39]} 30. Bxe6+ {[%clk 0:00:21]}  Kh7 {[%clk 0:01:39]} 31. Bf5 {[%clk 0:00:18]}  Bxd4 {[%clk 0:01:35]} 32. Nf8+ {[%clk 0:00:11]}  Kh6 {[%clk 0:01:30]} 33. Ne6 {[%clk 0:00:12]}  Bb6 {[%clk 0:01:14]} 34. Nxd8 {[%clk 0:00:04]}  Nd6 {[%clk 0:01:14]} 35. Bd3 {[%clk 0:00:04]}  Bxd8 {[%clk 0:01:15]} 36. Bxa6 {[%clk 0:00:04]}  Kg5 {[%clk 0:01:13]} 37. Bd3 {[%clk 0:00:04]}  Kf6 {[%clk 0:01:10]} 38. b4 {[%clk 0:00:03]}  Be7 {[%clk 0:01:09]} 39. a4 {[%clk 0:00:04]}  Nf7 {[%clk 0:01:10]} 40. b5 {[%clk 0:00:03]}  Bd8 {[%clk 0:01:10]} 41. Bc4 {[%clk 0:00:01]}  Ne5 {[%clk 0:01:10]} 42. Bd5 {[%clk 0:00:02]}  Bb6 {[%clk 0:01:09]} 43. e4 {[%clk 0:00:01]}  Kg5 {[%clk 0:01:08]} 44. Be6 {[%clk 0:00:02]}  Kf4 {[%clk 0:01:08]} 45. Bd5 {[%clk 0:00:02]}  g5 {[%clk 0:01:07]} 46. Bb7 {[%clk 0:00:03]}  g4 {[%clk 0:01:07]} 47. Bd5 {[%clk 0:00:04]}  h4 {[%clk 0:01:07]} 48. Bb7 {[%clk 0:00:04]}  h3+ {[%clk 0:01:08]} 49. Kh1 {[%clk 0:00:05]}  g3 {[%clk 0:01:03]} 50. hxg3+ {[%clk 0:00:05]}  Kxg3 {[%clk 0:01:03]} 51. Bd5 {[%clk 0:00:05]}  h2 {[%clk 0:01:03]} 52. Bb7 {[%clk 0:00:04]}  Nd3 {[%clk 0:01:03]} 53. e5 {[%clk 0:00:05]}  Nf2# {[%clk 0:01:04]} 0-1


[Site "https://www.chess.com"]

[Event "Titled Tuesday Blitz August 23 Early 2022"]
[White "Malicka, Maria"]
[Black "Papasimakopoulos, Alexandros"]
[WhiteFideId "1197576"]
[BlackFideId "4244125"]
[WhiteElo "1931"]
[BlackElo "2357"]
[Result "0-1"]
[Round "06"]
[TimeControl "180+1"]
[Date "2022.08.23"]
[WhiteClock "0:01:10"]
[BlackClock "0:01:06"]

1. e4 {[%clk 0:03:00]}  e6 {[%clk 0:02:57]} 2. d4 {[%clk 0:02:58]}  d5 {[%clk 0:02:57]} 3. Nd2 {[%clk 0:02:58]}  Nf6 {[%clk 0:02:57]} 4. e5 {[%clk 0:02:57]}  Nfd7 {[%clk 0:02:57]} 5. Bd3 {[%clk 0:02:57]}  c5 {[%clk 0:02:58]} 6. c3 {[%clk 0:02:57]}  Nc6 {[%clk 0:02:59]} 7. Ne2 {[%clk 0:02:57]}  cxd4 {[%clk 0:02:59]} 8. cxd4 {[%clk 0:02:52]}  f6 {[%clk 0:03:00]} 9. exf6 {[%clk 0:02:51]}  Nxf6 {[%clk 0:03:00]} 10. Nf3 {[%clk 0:02:50]}  Bd6 {[%clk 0:03:01]} 11. Bf4 {[%clk 0:02:48]}  Bb4+ {[%clk 0:03:00]} 12. Bd2 {[%clk 0:02:46]}  Bd6 {[%clk 0:02:55]} 13. O-O {[%clk 0:02:43]}  O-O {[%clk 0:02:55]} 14. Bf4 {[%clk 0:02:42]}  Bxf4 {[%clk 0:02:44]} 15. Nxf4 {[%clk 0:02:43]}  Ne4 {[%clk 0:02:45]} 16. Ne2 {[%clk 0:02:39]}  Bd7 {[%clk 0:02:43]} 17. Ng3 {[%clk 0:02:35]}  Ng5 {[%clk 0:02:41]} 18. Ne5 {[%clk 0:02:29]}  Nxe5 {[%clk 0:02:23]} 19. dxe5 {[%clk 0:02:29]}  Qb6 {[%clk 0:02:16]} 20. Qh5 {[%clk 0:02:26]}  h6 {[%clk 0:02:16]} 21. h4 {[%clk 0:02:17]}  Nf7 {[%clk 0:02:12]} 22. Qg6 {[%clk 0:01:58]}  Nxe5 {[%clk 0:02:10]} 23. Qh7+ {[%clk 0:01:58]}  Kf7 {[%clk 0:02:10]} 24. Nh5 {[%clk 0:01:58]}  Rg8 {[%clk 0:02:07]} 25. Nf4 {[%clk 0:01:44]}  Qd4 {[%clk 0:01:58]} 26. Rae1 {[%clk 0:01:41]}  Qxf4 {[%clk 0:01:57]} 27. g3 {[%clk 0:01:38]}  Qf6 {[%clk 0:01:51]} 28. Be2 {[%clk 0:01:36]}  Qg6 {[%clk 0:01:41]} 29. Qxg6+ {[%clk 0:01:33]}  Nxg6 {[%clk 0:01:40]} 30. Bh5 {[%clk 0:01:34]}  Kf6 {[%clk 0:01:40]} 31. Re3 {[%clk 0:01:33]}  Ne5 {[%clk 0:01:32]} 32. f4 {[%clk 0:01:33]}  Nc4 {[%clk 0:01:31]} 33. Rc3 {[%clk 0:01:32]}  g6 {[%clk 0:01:28]} 34. Bf3 {[%clk 0:01:28]}  Bc6 {[%clk 0:01:28]} 35. b3 {[%clk 0:01:27]}  Nd6 {[%clk 0:01:28]} 36. Rc2 {[%clk 0:01:26]}  Rae8 {[%clk 0:01:26]} 37. Re1 {[%clk 0:01:26]}  g5 {[%clk 0:01:26]} 38. fxg5+ {[%clk 0:01:25]}  hxg5 {[%clk 0:01:27]} 39. Rf2 {[%clk 0:01:25]}  Ke7 {[%clk 0:01:14]} 40. h5 {[%clk 0:01:24]}  g4 {[%clk 0:01:14]} 41. Bg2 {[%clk 0:01:23]}  Rg5 {[%clk 0:01:11]} 42. h6 {[%clk 0:01:22]}  Rh8 {[%clk 0:01:10]} 43. Ref1 {[%clk 0:01:20]}  Rh7 {[%clk 0:01:10]} 44. Rf8 {[%clk 0:01:19]}  Nf5 {[%clk 0:01:09]} 45. Ra8 {[%clk 0:01:16]}  a6 {[%clk 0:01:08]} 46. Ra7 {[%clk 0:01:16]}  Rxh6 {[%clk 0:01:06]} 47. Rc1 {[%clk 0:01:15]}  Kd6 {[%clk 0:01:06]} 48. a4 {[%clk 0:01:10]}  Nxg3 {[%clk 0:01:06]} 49. b4 {[%clk 0:01:10]}  Ne2+ {[%clk 0:01:06]} 0-1


[Site "https://www.chess.com"]

[Event "Titled Tuesday Blitz August 23 Early 2022"]
[White "Martin Carmona, Gaston Manuel"]
[Black "Bykhovsky, Anatoly"]
[WhiteFideId "22284567"]
[BlackFideId "2806991"]
[WhiteElo "2162"]
[BlackElo "2540"]
[Result "0-1"]
[Round "06"]
[TimeControl "180+1"]
[Date "2022.08.23"]
[WhiteClock "0:00:12"]
[BlackClock "0:00:18"]

1. d4 {[%clk 0:03:00]}  Nf6 {[%clk 0:02:47]} 2. c4 {[%clk 0:03:00]}  c5 {[%clk 0:02:47]} 3. Nf3 {[%clk 0:02:58]}  cxd4 {[%clk 0:02:47]} 4. Nxd4 {[%clk 0:02:59]}  Nc6 {[%clk 0:02:47]} 5. Nc3 {[%clk 0:02:58]}  e6 {[%clk 0:02:48]} 6. g3 {[%clk 0:02:57]}  Qb6 {[%clk 0:02:47]} 7. Nb3 {[%clk 0:02:48]}  Ne5 {[%clk 0:02:31]} 8. e4 {[%clk 0:02:45]}  Bb4 {[%clk 0:02:26]} 9. Qe2 {[%clk 0:02:45]}  O-O {[%clk 0:02:21]} 10. Bg2 {[%clk 0:02:39]}  Qc6 {[%clk 0:02:20]} 11. Nd2 {[%clk 0:02:27]}  Bxc3 {[%clk 0:02:05]} 12. bxc3 {[%clk 0:02:28]}  Qc7 {[%clk 0:02:05]} 13. O-O {[%clk 0:02:26]}  d6 {[%clk 0:02:03]} 14. f4 {[%clk 0:02:23]}  Nc6 {[%clk 0:02:01]} 15. Nb3 {[%clk 0:02:23]}  b6 {[%clk 0:02:00]} 16. Ba3 {[%clk 0:02:22]}  Rd8 {[%clk 0:01:58]} 17. Rfd1 {[%clk 0:02:22]}  Ba6 {[%clk 0:01:59]} 18. Qd3 {[%clk 0:01:18]}  d5 {[%clk 0:01:44]} 19. exd5 {[%clk 0:01:14]}  exd5 {[%clk 0:01:44]} 20. Nd4 {[%clk 0:01:10]}  dxc4 {[%clk 0:01:08]} 21. Qf3 {[%clk 0:01:01]}  Nxd4 {[%clk 0:01:06]} 22. Rxd4 {[%clk 0:00:57]}  Rxd4 {[%clk 0:01:06]} 23. Qxa8+ {[%clk 0:00:54]}  Rd8 {[%clk 0:01:03]} 24. Qf3 {[%clk 0:00:54]}  h5 {[%clk 0:00:51]} 25. Re1 {[%clk 0:00:53]}  Rd3 {[%clk 0:00:48]} 26. Qe2 {[%clk 0:00:53]}  Bb7 {[%clk 0:00:42]} 27. Bxb7 {[%clk 0:00:49]}  Qxb7 {[%clk 0:00:43]} 28. Be7 {[%clk 0:00:47]}  Ng4 {[%clk 0:00:35]} 29. Ba3 {[%clk 0:00:42]}  Re3 {[%clk 0:00:33]} 30. Qd2 {[%clk 0:00:42]}  Qf3 {[%clk 0:00:32]} 31. Rf1 {[%clk 0:00:31]}  Qe4 {[%clk 0:00:21]} 32. Qd8+ {[%clk 0:00:29]}  Kh7 {[%clk 0:00:22]} 33. Qh4 {[%clk 0:00:29]}  Nf6 {[%clk 0:00:17]} 34. g4 {[%clk 0:00:14]}  Re2 {[%clk 0:00:17]} 35. Qg3 {[%clk 0:00:14]}  hxg4 {[%clk 0:00:16]} 36. Qh4+ {[%clk 0:00:13]}  Kg8 {[%clk 0:00:17]} 37. Qg3 {[%clk 0:00:13]}  Qe3+ {[%clk 0:00:15]} 38. Qxe3 {[%clk 0:00:12]}  Rxe3 {[%clk 0:00:16]} 39. Rd1 {[%clk 0:00:09]}  Rxc3 {[%clk 0:00:15]} 40. Rd8+ {[%clk 0:00:10]}  Kh7 {[%clk 0:00:15]} 41. Bb2 {[%clk 0:00:11]}  Rc2 {[%clk 0:00:16]} 42. Bxf6 {[%clk 0:00:12]}  gxf6 {[%clk 0:00:17]} 43. Rd7 {[%clk 0:00:12]}  Kg6 {[%clk 0:00:17]} 44. Rxa7 {[%clk 0:00:12]}  b5 {[%clk 0:00:17]} 45. Rb7 {[%clk 0:00:12]}  Rb2 {[%clk 0:00:17]} 46. a4 {[%clk 0:00:11]}  b4 {[%clk 0:00:17]} 47. a5 {[%clk 0:00:11]}  c3 {[%clk 0:00:18]} 48. Rc7 {[%clk 0:00:12]}  c2 {[%clk 0:00:18]} 0-1


[Site "https://www.chess.com"]

[Event "Titled Tuesday Blitz August 23 Early 2022"]
[White "Moroni, Luca Jr"]
[Black "Bluebaum, Matthias"]
[WhiteFideId "865834"]
[BlackFideId "24651516"]
[WhiteElo "2573"]
[BlackElo "2603"]
[Result "1-0"]
[Round "06"]
[TimeControl "180+1"]
[Date "2022.08.23"]
[WhiteClock "0:00:17"]
[BlackClock "0:01:05"]

1. c4 {[%clk 0:03:00]}  e6 {[%clk 0:02:59]} 2. Nc3 {[%clk 0:03:00]}  d5 {[%clk 0:02:59]} 3. d4 {[%clk 0:03:00]}  Nf6 {[%clk 0:02:59]} 4. cxd5 {[%clk 0:02:57]}  exd5 {[%clk 0:03:00]} 5. Bg5 {[%clk 0:02:57]}  c6 {[%clk 0:03:01]} 6. e3 {[%clk 0:02:57]}  h6 {[%clk 0:03:02]} 7. Bh4 {[%clk 0:02:55]}  Be7 {[%clk 0:03:02]} 8. Bd3 {[%clk 0:02:56]}  O-O {[%clk 0:03:03]} 9. Nge2 {[%clk 0:02:54]}  Re8 {[%clk 0:03:04]} 10. O-O {[%clk 0:02:53]}  Nbd7 {[%clk 0:03:04]} 11. Qc2 {[%clk 0:02:52]}  Nh5 {[%clk 0:03:04]} 12. Bxe7 {[%clk 0:02:51]}  Qxe7 {[%clk 0:03:05]} 13. Rae1 {[%clk 0:02:50]}  Nb6 {[%clk 0:03:04]} 14. Qd2 {[%clk 0:02:50]}  Be6 {[%clk 0:02:59]} 15. Nf4 {[%clk 0:02:49]}  Nxf4 {[%clk 0:02:58]} 16. exf4 {[%clk 0:02:49]}  Qd6 {[%clk 0:02:53]} 17. Re5 {[%clk 0:02:43]}  f6 {[%clk 0:02:50]} 18. Re2 {[%clk 0:02:39]}  Bf7 {[%clk 0:02:50]} 19. Rfe1 {[%clk 0:02:37]}  Rxe2 {[%clk 0:02:51]} 20. Rxe2 {[%clk 0:02:38]}  Re8 {[%clk 0:02:50]} 21. Rxe8+ {[%clk 0:02:30]}  Bxe8 {[%clk 0:02:51]} 22. Qe3 {[%clk 0:02:29]}  Bf7 {[%clk 0:02:49]} 23. f5 {[%clk 0:02:26]}  Kf8 {[%clk 0:02:49]} 24. g3 {[%clk 0:02:20]}  Nc8 {[%clk 0:02:43]} 25. a3 {[%clk 0:02:07]}  Qe7 {[%clk 0:02:36]} 26. Qf4 {[%clk 0:01:53]}  Qd6 {[%clk 0:02:36]} 27. Qe3 {[%clk 0:01:50]}  Qe7 {[%clk 0:02:37]} 28. Qf4 {[%clk 0:01:49]}  Nd6 {[%clk 0:02:37]} 29. Kg2 {[%clk 0:01:46]}  Be8 {[%clk 0:02:36]} 30. g4 {[%clk 0:01:42]}  Bd7 {[%clk 0:02:35]} 31. b4 {[%clk 0:01:38]}  Ke8 {[%clk 0:02:34]} 32. h3 {[%clk 0:01:34]}  Kd8 {[%clk 0:02:33]} 33. Kg3 {[%clk 0:01:32]}  Kc7 {[%clk 0:02:27]} 34. Be2 {[%clk 0:01:21]}  b5 {[%clk 0:01:47]} 35. Qe3 {[%clk 0:00:47]}  Qf8 {[%clk 0:01:46]} 36. Bd3 {[%clk 0:00:42]}  Kb6 {[%clk 0:01:44]} 37. Ne2 {[%clk 0:00:40]}  a5 {[%clk 0:01:39]} 38. bxa5+ {[%clk 0:00:28]}  Kxa5 {[%clk 0:01:40]} 39. Qd2+ {[%clk 0:00:28]}  Kb6 {[%clk 0:01:40]} 40. Qb4 {[%clk 0:00:28]}  Qb8 {[%clk 0:01:33]} 41. Nf4 {[%clk 0:00:19]}  Kc7 {[%clk 0:01:09]} 42. Qc5 {[%clk 0:00:17]}  Qb6 {[%clk 0:01:05]} 43. Nxd5+ {[%clk 0:00:17]} 1-0


[Site "https://www.chess.com"]

[Event "Titled Tuesday Blitz August 23 Early 2022"]
[White "Paravyan, David"]
[Black "Kosteniuk, Alexandra"]
[WhiteFideId "4194985"]
[BlackFideId "4128125"]
[WhiteElo "2569"]
[BlackElo "2469"]
[Result "1-0"]
[Round "06"]
[TimeControl "180+1"]
[Date "2022.08.23"]
[WhiteClock "0:01:35"]
[BlackClock "0:00:54"]

1. e4 {[%clk 0:02:59]}  e5 {[%clk 0:03:00]} 2. Nf3 {[%clk 0:02:57]}  Nc6 {[%clk 0:03:00]} 3. Nc3 {[%clk 0:02:58]}  Nf6 {[%clk 0:03:01]} 4. d4 {[%clk 0:02:58]}  exd4 {[%clk 0:03:01]} 5. Nxd4 {[%clk 0:02:59]}  Bb4 {[%clk 0:03:01]} 6. Nxc6 {[%clk 0:03:00]}  bxc6 {[%clk 0:03:02]} 7. Bd3 {[%clk 0:02:59]}  O-O {[%clk 0:03:02]} 8. O-O {[%clk 0:03:00]}  d5 {[%clk 0:03:03]} 9. exd5 {[%clk 0:03:00]}  cxd5 {[%clk 0:03:03]} 10. h3 {[%clk 0:03:00]}  Rb8 {[%clk 0:03:00]} 11. a3 {[%clk 0:02:57]}  Be7 {[%clk 0:02:49]} 12. b4 {[%clk 0:02:57]}  Be6 {[%clk 0:02:37]} 13. Nb5 {[%clk 0:02:52]}  Qd7 {[%clk 0:02:30]} 14. Nd4 {[%clk 0:02:51]}  c5 {[%clk 0:02:28]} 15. bxc5 {[%clk 0:02:50]}  Bxc5 {[%clk 0:02:29]} 16. Be3 {[%clk 0:02:50]}  Bd6 {[%clk 0:02:24]} 17. Qf3 {[%clk 0:02:47]}  Be5 {[%clk 0:02:05]} 18. Rad1 {[%clk 0:02:46]}  Qa4 {[%clk 0:02:00]} 19. Rfe1 {[%clk 0:02:10]}  Bc7 {[%clk 0:01:08]} 20. Bf4 {[%clk 0:02:03]}  Bxf4 {[%clk 0:01:01]} 21. Qxf4 {[%clk 0:02:04]}  Qxa3 {[%clk 0:01:02]} 22. Nxe6 {[%clk 0:01:55]}  fxe6 {[%clk 0:01:02]} 23. Rxe6 {[%clk 0:01:56]}  Ne4 {[%clk 0:00:57]} 24. Qe3 {[%clk 0:01:37]}  Nxf2 {[%clk 0:00:54]} 25. Bxh7+ {[%clk 0:01:35]} 1-0


[Site "https://www.chess.com"]

[Event "Titled Tuesday Blitz August 23 Early 2022"]
[White "Puranik, Abhimanyu"]
[Black "Boros, Denes"]
[WhiteFideId "5061245"]
[BlackFideId "722340"]
[WhiteElo "2520"]
[BlackElo "2464"]
[Result "1-0"]
[Round "06"]
[TimeControl "180+1"]
[Date "2022.08.23"]
[WhiteClock "0:00:59"]
[BlackClock "0:00:51"]

1. e4 {[%clk 0:03:00]}  Nc6 {[%clk 0:02:56]} 2. d4 {[%clk 0:02:59]}  e5 {[%clk 0:02:55]} 3. dxe5 {[%clk 0:02:56]}  Nxe5 {[%clk 0:02:56]} 4. Nc3 {[%clk 0:02:52]}  Bc5 {[%clk 0:02:53]} 5. f4 {[%clk 0:02:37]}  Nc6 {[%clk 0:02:50]} 6. Nf3 {[%clk 0:02:21]}  Nf6 {[%clk 0:02:34]} 7. e5 {[%clk 0:02:21]}  Ng4 {[%clk 0:02:34]} 8. Ne4 {[%clk 0:02:22]}  Bb6 {[%clk 0:02:30]} 9. Bc4 {[%clk 0:02:12]}  O-O {[%clk 0:02:21]} 10. Nfg5 {[%clk 0:01:46]}  Qe7 {[%clk 0:02:07]} 11. Qxg4 {[%clk 0:01:43]}  Qb4+ {[%clk 0:01:50]} 12. Bd2 {[%clk 0:01:32]}  Qxc4 {[%clk 0:01:48]} 13. Nf6+ {[%clk 0:01:18]}  Kh8 {[%clk 0:01:48]} 14. Qf5 {[%clk 0:01:09]}  g6 {[%clk 0:01:47]} 15. Qh3 {[%clk 0:01:06]}  h5 {[%clk 0:01:44]} 16. Nxh5 {[%clk 0:01:03]}  d6 {[%clk 0:01:16]} 17. Qh4 {[%clk 0:01:01]}  Bg4 {[%clk 0:00:57]} 18. Nf6+ {[%clk 0:00:59]}  Bh5 {[%clk 0:00:51]} 19. Nxh5 {[%clk 0:00:59]} 1-0


[Site "https://www.chess.com"]

[Event "Titled Tuesday Blitz August 23 Early 2022"]
[White "Salinas Herrera, Pablo"]
[Black "Theodorou, Nikolas"]
[WhiteFideId "3407128"]
[BlackFideId "4262875"]
[WhiteElo "2542"]
[BlackElo "2484"]
[Result "0-1"]
[Round "06"]
[TimeControl "180+1"]
[Date "2022.08.23"]
[WhiteClock "0:00:02"]
[BlackClock "0:00:05"]

1. e4 {[%clk 0:02:59]}  c5 {[%clk 0:02:57]} 2. Nf3 {[%clk 0:02:59]}  Nc6 {[%clk 0:02:57]} 3. Bb5 {[%clk 0:03:00]}  e6 {[%clk 0:02:57]} 4. O-O {[%clk 0:02:59]}  Nge7 {[%clk 0:02:57]} 5. Re1 {[%clk 0:02:59]}  h6 {[%clk 0:02:54]} 6. b3 {[%clk 0:02:59]}  a6 {[%clk 0:02:54]} 7. Bf1 {[%clk 0:02:58]}  b5 {[%clk 0:02:53]} 8. Bb2 {[%clk 0:02:59]}  Bb7 {[%clk 0:02:53]} 9. a4 {[%clk 0:02:57]}  b4 {[%clk 0:02:51]} 10. d3 {[%clk 0:02:57]}  d6 {[%clk 0:02:45]} 11. Nbd2 {[%clk 0:02:58]}  Ng6 {[%clk 0:02:40]} 12. Nc4 {[%clk 0:02:55]}  e5 {[%clk 0:02:32]} 13. Nfd2 {[%clk 0:02:39]}  a5 {[%clk 0:02:30]} 14. g3 {[%clk 0:02:37]}  Be7 {[%clk 0:02:30]} 15. h4 {[%clk 0:02:34]}  Qc7 {[%clk 0:02:29]} 16. Bh3 {[%clk 0:02:32]}  Nf8 {[%clk 0:02:30]} 17. Ne3 {[%clk 0:02:32]}  Nd4 {[%clk 0:02:29]} 18. Ndc4 {[%clk 0:02:26]}  Nfe6 {[%clk 0:02:22]} 19. Nd5 {[%clk 0:02:25]}  Qd8 {[%clk 0:02:20]} 20. Nce3 {[%clk 0:02:09]}  Nc7 {[%clk 0:01:56]} 21. Nxe7 {[%clk 0:01:41]}  Qxe7 {[%clk 0:01:55]} 22. Qg4 {[%clk 0:01:41]}  g6 {[%clk 0:01:51]} 23. Bg2 {[%clk 0:01:27]}  h5 {[%clk 0:01:36]} 24. Qd1 {[%clk 0:01:27]}  O-O-O {[%clk 0:01:37]} 25. c3 {[%clk 0:01:26]}  Nc6 {[%clk 0:01:30]} 26. cxb4 {[%clk 0:01:17]}  axb4 {[%clk 0:01:23]} 27. Nc4 {[%clk 0:01:07]}  Ba6 {[%clk 0:01:20]} 28. Ne3 {[%clk 0:00:58]}  Kb8 {[%clk 0:01:09]} 29. Nd5 {[%clk 0:00:52]}  Qd7 {[%clk 0:01:02]} 30. f4 {[%clk 0:00:45]}  Qg4 {[%clk 0:00:40]} 31. Qxg4 {[%clk 0:00:20]}  hxg4 {[%clk 0:00:41]} 32. Bf1 {[%clk 0:00:13]}  Nxd5 {[%clk 0:00:24]} 33. exd5 {[%clk 0:00:13]}  Nd4 {[%clk 0:00:25]} 34. Bxd4 {[%clk 0:00:12]}  exd4 {[%clk 0:00:26]} 35. Re7 {[%clk 0:00:12]}  Rhe8 {[%clk 0:00:23]} 36. Rae1 {[%clk 0:00:12]}  Rxe7 {[%clk 0:00:15]} 37. Rxe7 {[%clk 0:00:13]}  Rf8 {[%clk 0:00:10]} 38. Rd7 {[%clk 0:00:12]}  Bb7 {[%clk 0:00:11]} 39. Rxd6 {[%clk 0:00:13]}  Kc7 {[%clk 0:00:11]} 40. Rf6 {[%clk 0:00:07]}  Bxd5 {[%clk 0:00:12]} 41. Bg2 {[%clk 0:00:06]}  Bxb3 {[%clk 0:00:11]} 42. Rc6+ {[%clk 0:00:06]}  Kd7 {[%clk 0:00:10]} 43. Rxc5 {[%clk 0:00:07]}  Bxa4 {[%clk 0:00:08]} 44. Ra5 {[%clk 0:00:06]}  Bc2 {[%clk 0:00:05]} 45. Rd5+ {[%clk 0:00:07]}  Ke7 {[%clk 0:00:06]} 46. Rxd4 {[%clk 0:00:07]}  Rb8 {[%clk 0:00:06]} 47. Re4+ {[%clk 0:00:05]}  Kf8 {[%clk 0:00:05]} 48. Rc4 {[%clk 0:00:02]}  b3 {[%clk 0:00:05]} 0-1


[Site "https://www.chess.com"]

[Event "Titled Tuesday Blitz August 23 Early 2022"]
[White "Sarana, Alexey"]
[Black "Ibrahimli, Murad"]
[WhiteFideId "24133795"]
[BlackFideId "13410229"]
[WhiteElo "2666"]
[BlackElo "2109"]
[Result "1-0"]
[Round "06"]
[TimeControl "180+1"]
[Date "2022.08.23"]
[WhiteClock "0:01:00"]
[BlackClock "0:00:42"]

1. d4 {[%clk 0:02:58]}  Nf6 {[%clk 0:02:58]} 2. c4 {[%clk 0:02:59]}  e6 {[%clk 0:02:58]} 3. Nc3 {[%clk 0:02:59]}  Bb4 {[%clk 0:02:58]} 4. e3 {[%clk 0:03:00]}  b6 {[%clk 0:02:57]} 5. Ne2 {[%clk 0:02:58]}  Bb7 {[%clk 0:02:47]} 6. a3 {[%clk 0:02:58]}  Be7 {[%clk 0:02:48]} 7. Ng3 {[%clk 0:02:57]}  d5 {[%clk 0:02:45]} 8. cxd5 {[%clk 0:02:56]}  exd5 {[%clk 0:02:45]} 9. Bd3 {[%clk 0:02:56]}  O-O {[%clk 0:02:38]} 10. Nf5 {[%clk 0:02:55]}  c5 {[%clk 0:02:34]} 11. O-O {[%clk 0:02:54]}  Ba6 {[%clk 0:02:32]} 12. dxc5 {[%clk 0:02:43]}  Bxc5 {[%clk 0:02:13]} 13. Bxa6 {[%clk 0:02:38]}  Nxa6 {[%clk 0:02:13]} 14. b4 {[%clk 0:02:38]}  Bd6 {[%clk 0:02:06]} 15. Nxd5 {[%clk 0:02:33]}  Nxd5 {[%clk 0:01:58]} 16. Qxd5 {[%clk 0:02:32]}  Bc7 {[%clk 0:01:47]} 17. Qc4 {[%clk 0:02:25]}  Qf6 {[%clk 0:01:41]} 18. Nd4 {[%clk 0:02:24]}  b5 {[%clk 0:01:33]} 19. Qxb5 {[%clk 0:02:23]}  Rab8 {[%clk 0:01:31]} 20. Qc6 {[%clk 0:02:12]}  Qe5 {[%clk 0:01:27]} 21. g3 {[%clk 0:02:04]}  Rb6 {[%clk 0:01:27]} 22. Qg2 {[%clk 0:01:56]}  Rh6 {[%clk 0:01:28]} 23. Bb2 {[%clk 0:01:56]}  Qh5 {[%clk 0:01:28]} 24. Rac1 {[%clk 0:01:54]}  Be5 {[%clk 0:01:21]} 25. Rc6 {[%clk 0:01:48]}  Rxc6 {[%clk 0:01:09]} 26. Qxc6 {[%clk 0:01:49]}  Nb8 {[%clk 0:01:10]} 27. Qd5 {[%clk 0:01:47]}  g6 {[%clk 0:01:10]} 28. Rc1 {[%clk 0:01:37]}  Re8 {[%clk 0:01:01]} 29. Kg2 {[%clk 0:01:27]}  Qg4 {[%clk 0:00:56]} 30. Rc4 {[%clk 0:01:21]}  Qd1 {[%clk 0:00:52]} 31. Qb5 {[%clk 0:01:12]}  Kf8 {[%clk 0:00:49]} 32. Ne6+ {[%clk 0:01:03]}  Rxe6 {[%clk 0:00:49]} 33. Rc8+ {[%clk 0:01:02]}  Ke7 {[%clk 0:00:42]} 34. Re8+ {[%clk 0:01:00]} 1-0


[Site "https://www.chess.com"]